[Event "Live Chess"]
[Site "Chess.com"]
[Date "2024.06.01"]
[Round "-"]
[White "dhairyapandyauk"]
[Black "Mangoalo"]
[Result "1-0"]
[WhiteElo "1654"]
[BlackElo "1063"]
[TimeControl "300"]
[EndTime "14:50:48 PDT"]
[Termination "dhairyapandyauk won by resignation"]

1. e4 {[%clk 0:04:57.6]} 1... Nc6 {[%clk 0:04:58.2]} 2. d4 {[%clk 0:04:56.6]}
2... d5 {[%clk 0:04:56.6]} 3. exd5 {[%clk 0:04:55.9]} 3... Qxd5 {[%clk
0:04:55.8]} 4. Nf3 {[%clk 0:04:54.5]} 4... Bg4 {[%clk 0:04:52.2]} 5. Be2 {[%clk
0:04:53.6]} 5... Nf6 {[%clk 0:04:48.2]} 6. h3 {[%clk 0:04:52.2]} 6... Bxf3
{[%clk 0:04:42.6]} 7. Bxf3 {[%clk 0:04:51.7]} 7... Qd7 {[%clk 0:04:41.3]} 8. d5
{[%clk 0:04:49.7]} 8... Ne5 {[%clk 0:04:36.1]} 9. Nc3 {[%clk 0:04:42.4]} 9...
O-O-O {[%clk 0:04:34.6]} 10. Be3 {[%clk 0:04:29.1]} 10... Nxf3+ {[%clk
0:04:33.3]} 11. Qxf3 {[%clk 0:04:28.5]} 11... e5 {[%clk 0:04:22.4]} 12. O-O-O
{[%clk 0:04:24.8]} 12... Bb4 {[%clk 0:04:12.6]} 13. Bg5 {[%clk 0:04:04.9]} 13...
Bxc3 {[%clk 0:04:10.1]} 14. Qxc3 {[%clk 0:04:04.4]} 14... Nxd5 {[%clk
0:04:06.9]} 15. Qxe5 {[%clk 0:04:01.8]} 15... f6 {[%clk 0:04:00.2]} 16. Qg3
{[%clk 0:03:56.9]} 16... fxg5 {[%clk 0:03:55]} 17. c4 {[%clk 0:03:56.4]} 17...
c6 {[%clk 0:03:50.8]} 18. cxd5 {[%clk 0:03:55.1]} 18... cxd5 {[%clk 0:03:50.7]}
19. Kb1 {[%clk 0:03:49.7]} 19... Rhe8 {[%clk 0:03:40.6]} 20. Rc1+ {[%clk
0:03:48.2]} 1-0

[Event "Live Chess"]
[Site "Chess.com"]
[Date "2024.06.01"]
[Round "-"]
[White "KnightStripes"]
[Black "lestmak"]
[Result "1-0"]
[WhiteElo "905"]
[BlackElo "530"]
[TimeControl "300"]
[EndTime "14:51:00 PDT"]
[Termination "KnightStripes won by resignation"]

1. e4 {[%clk 0:04:54.3]} 1... c6 {[%clk 0:04:57.2]} 2. Nf3 {[%clk 0:04:53.5]}
2... d5 {[%clk 0:04:56.3]} 3. exd5 {[%clk 0:04:50.5]} 3... cxd5 {[%clk
0:04:55.3]} 4. c3 {[%clk 0:04:50]} 4... Bg4 {[%clk 0:04:49.1]} 5. d4 {[%clk
0:04:46.6]} 5... Nc6 {[%clk 0:04:45.3]} 6. Be2 {[%clk 0:04:36.6]} 6... e6 {[%clk
0:04:43.1]} 7. O-O {[%clk 0:04:34.2]} 7... Nf6 {[%clk 0:04:36.5]} 8. Ne5 {[%clk
0:04:30.3]} 8... Bd6 {[%clk 0:04:26.5]} 9. Bf4 {[%clk 0:04:21]} 9... Bxe2 {[%clk
0:04:21.7]} 10. Qxe2 {[%clk 0:04:19.4]} 10... Nxe5 {[%clk 0:04:21]} 11. dxe5
{[%clk 0:04:17.3]} 11... Ne4 {[%clk 0:04:13.5]} 12. exd6 {[%clk 0:04:14.5]}
12... O-O {[%clk 0:03:59.3]} 13. Nd2 {[%clk 0:04:10.8]} 13... Nxd6 {[%clk
0:03:58]} 14. Nf3 {[%clk 0:04:06.5]} 14... Nf5 {[%clk 0:03:56.4]} 15. Qb5 {[%clk
0:04:02.5]} 15... b6 {[%clk 0:03:53.5]} 16. Ne5 {[%clk 0:03:48.3]} 16... Nd6
{[%clk 0:03:37.8]} 17. Qd3 {[%clk 0:03:37.3]} 17... f6 {[%clk 0:03:31.8]} 18.
Nc6 {[%clk 0:03:31.9]} 18... Qc7 {[%clk 0:03:20.7]} 19. Nd4 {[%clk 0:03:26.1]}
19... e5 {[%clk 0:03:19.1]} 20. Ne6 {[%clk 0:03:22.1]} 20... Qc4 {[%clk
0:02:59.6]} 21. Qxc4 {[%clk 0:03:19.8]} 21... Nxc4 {[%clk 0:02:56.3]} 22. Nxf8
{[%clk 0:03:18.5]} 22... exf4 {[%clk 0:02:55]} 23. Ne6 {[%clk 0:03:10.7]} 23...
Re8 {[%clk 0:02:48.8]} 24. Nxf4 {[%clk 0:03:07.9]} 24... Re2 {[%clk 0:02:46.4]}
25. Nxe2 {[%clk 0:03:04.6]} 1-0

[Event "Live Chess"]
[Site "Chess.com"]
[Date "2024.06.01"]
[Round "-"]
[White "BishopofWells"]
[Black "degringolade64"]
[Result "1-0"]
[WhiteElo "1553"]
[BlackElo "2114"]
[TimeControl "300"]
[EndTime "14:51:13 PDT"]
[Termination "BishopofWells won by resignation"]

1. d4 {[%clk 0:04:56.9]} 1... Nf6 {[%clk 0:04:58]} 2. c4 {[%clk 0:04:55.6]} 2...
e6 {[%clk 0:04:56.7]} 3. a3 {[%clk 0:04:52.4]} 3... c5 {[%clk 0:04:51.9]} 4. d5
{[%clk 0:04:49]} 4... exd5 {[%clk 0:04:48.7]} 5. cxd5 {[%clk 0:04:48.1]} 5... d6
{[%clk 0:04:46.8]} 6. Nc3 {[%clk 0:04:43.3]} 6... g6 {[%clk 0:04:45.2]} 7. e4
{[%clk 0:04:41.5]} 7... Bg7 {[%clk 0:04:43.8]} 8. Nf3 {[%clk 0:04:35.1]} 8...
O-O {[%clk 0:04:41.9]} 9. Bd3 {[%clk 0:04:28.1]} 9... Bg4 {[%clk 0:04:35.8]} 10.
O-O {[%clk 0:04:25.2]} 10... Nbd7 {[%clk 0:04:32.4]} 11. h3 {[%clk 0:04:24.3]}
11... Bxf3 {[%clk 0:04:30.9]} 12. Qxf3 {[%clk 0:04:21.5]} 12... Ne5 {[%clk
0:04:30]} 13. Qe2 {[%clk 0:04:18.9]} 13... Nxd3 {[%clk 0:04:28.5]} 14. Qxd3
{[%clk 0:04:17.8]} 14... Nd7 {[%clk 0:04:28]} 15. Bf4 {[%clk 0:04:07]} 15... Ne5
{[%clk 0:04:23.8]} 16. Qd2 {[%clk 0:04:05.8]} 16... a6 {[%clk 0:04:21.9]} 17.
Rab1 {[%clk 0:04:02.6]} 17... b5 {[%clk 0:04:20]} 18. Bg5 {[%clk 0:03:48.2]}
18... Qb6 {[%clk 0:04:00.6]} 19. Kh1 {[%clk 0:03:23.7]} 19... Rfe8 {[%clk
0:03:58]} 20. Bh6 {[%clk 0:03:05.6]} 20... Nc4 {[%clk 0:03:54.1]} 21. Qg5 {[%clk
0:02:50.6]} 21... Qd8 {[%clk 0:03:17.5]} 22. Qxd8 {[%clk 0:02:34.5]} 22... Raxd8
{[%clk 0:03:16.4]} 23. Bc1 {[%clk 0:02:32.8]} 23... b4 {[%clk 0:03:11.5]} 24.
axb4 {[%clk 0:02:27.4]} 24... cxb4 {[%clk 0:03:10.3]} 25. Na2 {[%clk 0:02:22.1]}
25... a5 {[%clk 0:03:07.8]} 26. b3 {[%clk 0:02:17.4]} 26... Ne5 {[%clk
0:02:55.8]} 27. f3 {[%clk 0:02:14]} 27... Rc8 {[%clk 0:02:48.1]} 28. Be3 {[%clk
0:02:05.1]} 28... Rc2 {[%clk 0:02:35.4]} 29. Nc1 {[%clk 0:02:00.2]} 29... Ra8
{[%clk 0:02:17.6]} 30. Rf2 {[%clk 0:01:58]} 30... Rxf2 {[%clk 0:02:08.9]} 31.
Bxf2 {[%clk 0:01:56]} 31... Nd7 {[%clk 0:02:00.5]} 32. Ne2 {[%clk 0:01:47.6]}
32... Rc8 {[%clk 0:01:58.5]} 33. Rc1 {[%clk 0:01:39.5]} 33... Rxc1+ {[%clk
0:01:49.6]} 34. Nxc1 {[%clk 0:01:38.5]} 34... Bb2 {[%clk 0:01:48.9]} 35. Nd3
{[%clk 0:01:34.5]} 35... Bc3 {[%clk 0:01:47.1]} 36. Kg1 {[%clk 0:01:33.7]} 36...
a4 {[%clk 0:01:41]} 37. bxa4 {[%clk 0:01:29.8]} 37... b3 {[%clk 0:01:40.3]} 38.
Kf1 {[%clk 0:01:16.3]} 38... b2 {[%clk 0:01:39.3]} 39. Nxb2 {[%clk 0:01:15.4]}
39... Bxb2 {[%clk 0:01:38.9]} 40. Ke2 {[%clk 0:01:14.7]} 40... Ba3 {[%clk
0:01:30.1]} 41. Kd3 {[%clk 0:01:02.4]} 41... Bc5 {[%clk 0:01:28.4]} 42. Be1
{[%clk 0:00:57.6]} 42... h5 {[%clk 0:01:22.6]} 43. Kc4 {[%clk 0:00:55.2]} 43...
Kg7 {[%clk 0:01:19.2]} 44. Kb5 {[%clk 0:00:53]} 44... Kf6 {[%clk 0:01:16.2]} 45.
Kc6 {[%clk 0:00:48.2]} 45... Ne5+ {[%clk 0:01:13.2]} 46. Kc7 {[%clk 0:00:36]}
46... Nc4 {[%clk 0:01:08.6]} 47. a5 {[%clk 0:00:31.4]} 47... Bb6+ {[%clk
0:00:58.4]} 48. axb6 {[%clk 0:00:28.9]} 48... Nxb6 {[%clk 0:00:55.6]} 49. Kxb6
{[%clk 0:00:27.3]} 49... Ke5 {[%clk 0:00:54.3]} 50. Kc6 {[%clk 0:00:25.8]} 50...
Kf4 {[%clk 0:00:51.7]} 1-0

[Event "Live Chess"]
[Site "Chess.com"]
[Date "2024.06.01"]
[Round "-"]
[White "booktrunk"]
[Black "Mikhail_Golubev"]
[Result "1-0"]
[WhiteElo "1437"]
[BlackElo "2586"]
[TimeControl "300"]
[EndTime "14:51:18 PDT"]
[Termination "booktrunk won on time"]

1. d4 {[%clk 0:04:50.3]} 1... g6 {[%clk 0:04:54.6]} 2. Nc3 {[%clk 0:04:38.3]}
2... d5 {[%clk 0:04:49]} 3. Bf4 {[%clk 0:04:35.8]} 3... Bg7 {[%clk 0:04:48]} 4.
Nf3 {[%clk 0:04:26.2]} 4... Nf6 {[%clk 0:04:35.7]} 5. Nb5 {[%clk 0:04:23.6]}
5... Na6 {[%clk 0:04:32.5]} 6. e3 {[%clk 0:04:20.7]} 6... c6 {[%clk 0:04:26.3]}
7. Nc3 {[%clk 0:04:18.6]} 7... Nc7 {[%clk 0:04:23.7]} 8. Be2 {[%clk 0:04:09.3]}
8... O-O {[%clk 0:04:20.6]} 9. O-O {[%clk 0:04:06.7]} 9... Bf5 {[%clk
0:04:03.1]} 10. Nh4 {[%clk 0:04:01.1]} 10... Bd7 {[%clk 0:03:53.4]} 11. h3
{[%clk 0:03:55.7]} 11... Ne6 {[%clk 0:03:36.9]} 12. Bh2 {[%clk 0:03:50.7]} 12...
Ne4 {[%clk 0:03:24.1]} 13. Nxe4 {[%clk 0:03:47.4]} 13... dxe4 {[%clk 0:03:24]}
14. c3 {[%clk 0:03:44.9]} 14... Bf6 {[%clk 0:03:03]} 15. Bg3 {[%clk 0:03:41.4]}
15... Ng7 {[%clk 0:02:45.8]} 16. f3 {[%clk 0:03:39.4]} 16... Nh5 {[%clk
0:01:53.9]} 17. Qe1 {[%clk 0:03:20.2]} 17... Nxg3 {[%clk 0:01:46.3]} 18. Qxg3
{[%clk 0:03:14.6]} 18... e6 {[%clk 0:01:45]} 19. fxe4 {[%clk 0:03:11.5]} 19...
Bxh4 {[%clk 0:01:43.2]} 20. Qf3 {[%clk 0:03:02.2]} 20... Qe7 {[%clk 0:01:27.6]}
21. e5 {[%clk 0:02:57.4]} 21... c5 {[%clk 0:01:17.8]} 22. Bd3 {[%clk 0:02:49.3]}
22... b5 {[%clk 0:01:05.7]} 23. b3 {[%clk 0:02:29.4]} 23... b4 {[%clk
0:00:56.1]} 24. c4 {[%clk 0:02:27]} 24... Rad8 {[%clk 0:00:47.6]} 25. dxc5
{[%clk 0:02:17.1]} 25... Qxc5 {[%clk 0:00:41.9]} 26. Qe4 {[%clk 0:02:15.9]}
26... Be7 {[%clk 0:00:37.2]} 27. Rad1 {[%clk 0:02:11.7]} 27... Bc6 {[%clk
0:00:36.2]} 28. Qf4 {[%clk 0:02:08.8]} 28... Rd7 {[%clk 0:00:31.1]} 29. Be4
{[%clk 0:02:05.8]} 29... Bxe4 {[%clk 0:00:24.8]} 30. Qxe4 {[%clk 0:02:04]} 30...
Rfd8 {[%clk 0:00:21.2]} 31. Rxd7 {[%clk 0:02:01.4]} 31... Rxd7 {[%clk
0:00:21.1]} 32. Qa8+ {[%clk 0:01:58]} 32... Bf8 {[%clk 0:00:17.5]} 33. Qe4
{[%clk 0:01:56.6]} 33... h5 {[%clk 0:00:14.6]} 34. Re1 {[%clk 0:01:51]} 34...
Bg7 {[%clk 0:00:13.1]} 35. Qf4 {[%clk 0:01:42.6]} 35... Bxe5 {[%clk 0:00:11.3]}
36. Qe4 {[%clk 0:01:39]} 36... f5 {[%clk 0:00:09.7]} 37. Qa8+ {[%clk 0:01:36]}
37... Kf7 {[%clk 0:00:09.1]} 38. Qf3 {[%clk 0:01:32.1]} 38... h4 {[%clk
0:00:08.1]} 39. Qe2 {[%clk 0:01:28.7]} 39... Bg3 {[%clk 0:00:07.4]} 40. Rf1
{[%clk 0:01:25.5]} 40... e5 {[%clk 0:00:07.1]} 41. Rf3 {[%clk 0:01:23.6]} 41...
e4 {[%clk 0:00:06.3]} 42. Rf1 {[%clk 0:01:20.7]} 42... Rd3 {[%clk 0:00:05.8]}
43. Kh1 {[%clk 0:01:16.4]} 43... Rxe3 {[%clk 0:00:05.3]} 44. Qd1 {[%clk
0:01:15.5]} 44... Rd3 {[%clk 0:00:04.7]} 45. Qc1 {[%clk 0:01:11.6]} 45... Qd4
{[%clk 0:00:04]} 46. Qb1 {[%clk 0:01:09.3]} 46... Rd2 {[%clk 0:00:02.5]} 47. Qc1
{[%clk 0:01:04.6]} 47... e3 {[%clk 0:00:02.1]} 48. Qb1 {[%clk 0:01:00.4]} 48...
e2 {[%clk 0:00:02]} 49. Rxf5+ {[%clk 0:00:58.6]} 49... gxf5 {[%clk 0:00:00.6]}
50. Qxf5+ {[%clk 0:00:58.1]} 50... Ke7 {[%clk 0:00:00.5]} 51. Qg5+ {[%clk
0:00:56.4]} 51... Kd6 {[%clk 0:00:00.1]} 52. Qg6+ {[%clk 0:00:55.4]} 1-0

[Event "Live Chess"]
[Site "Chess.com"]
[Date "2024.06.01"]
[Round "-"]
[White "WorcesterYork"]
[Black "JohanKjeldahl"]
[Result "1-0"]
[WhiteElo "2481"]
[BlackElo "1877"]
[TimeControl "300"]
[EndTime "14:51:34 PDT"]
[Termination "WorcesterYork won by resignation"]

1. d4 {[%clk 0:04:58.2]} 1... Nf6 {[%clk 0:04:57.8]} 2. Nc3 {[%clk 0:04:57.4]}
2... e6 {[%clk 0:04:55.9]} 3. e4 {[%clk 0:04:56.4]} 3... Bb4 {[%clk 0:04:48.8]}
4. e5 {[%clk 0:04:54.7]} 4... Nd5 {[%clk 0:04:46.9]} 5. Qg4 {[%clk 0:04:53.6]}
5... O-O {[%clk 0:04:38.8]} 6. Bh6 {[%clk 0:04:51]} 6... g6 {[%clk 0:04:36.6]}
7. Bxf8 {[%clk 0:04:49.8]} 7... Qxf8 {[%clk 0:04:33.4]} 8. Ne2 {[%clk 0:04:49]}
8... c5 {[%clk 0:04:32]} 9. a3 {[%clk 0:04:47.3]} 9... Ba5 {[%clk 0:04:26.9]}
10. dxc5 {[%clk 0:04:45.8]} 10... Qxc5 {[%clk 0:04:23.5]} 11. b4 {[%clk
0:04:44.4]} 11... Bxb4 {[%clk 0:04:11.2]} 12. axb4 {[%clk 0:04:44.3]} 12... Nxb4
{[%clk 0:04:09.8]} 13. Qe4 {[%clk 0:04:38.3]} 13... N8c6 {[%clk 0:04:04.7]} 14.
f4 {[%clk 0:04:36.3]} 14... Nd4 {[%clk 0:03:57]} 15. Nxd4 {[%clk 0:04:32.3]}
15... Qxd4 {[%clk 0:03:55.4]} 16. Qxd4 {[%clk 0:04:31.5]} 16... Nxc2+ {[%clk
0:03:54.5]} 17. Kd2 {[%clk 0:04:30.4]} 17... Nxd4 {[%clk 0:03:53.2]} 18. Rb1
{[%clk 0:04:28.7]} 18... b6 {[%clk 0:03:48.3]} 19. Ke3 {[%clk 0:04:27.7]} 19...
Nf5+ {[%clk 0:03:46.6]} 20. Kf2 {[%clk 0:04:27]} 20... Bb7 {[%clk 0:03:45.3]}
21. Bd3 {[%clk 0:04:25.7]} 21... Rc8 {[%clk 0:03:41.2]} 22. Rhc1 {[%clk
0:04:23]} 22... Kg7 {[%clk 0:03:31.7]} 23. Bxf5 {[%clk 0:04:21.9]} 23... gxf5
{[%clk 0:03:30.2]} 24. Nb5 {[%clk 0:04:21.2]} 1-0

[Event "Live Chess"]
[Site "Chess.com"]
[Date "2024.06.01"]
[Round "-"]
[White "BearFromUkraine"]
[Black "willc-h99"]
[Result "0-1"]
[WhiteElo "1071"]
[BlackElo "2625"]
[TimeControl "300"]
[EndTime "14:51:41 PDT"]
[Termination "willc-h99 won by resignation"]

1. e4 {[%clk 0:04:57.3]} 1... c6 {[%clk 0:04:58.4]} 2. d4 {[%clk 0:04:55.6]}
2... d5 {[%clk 0:04:57.5]} 3. exd5 {[%clk 0:04:54.6]} 3... cxd5 {[%clk
0:04:56.4]} 4. Nc3 {[%clk 0:04:53.4]} 4... Nc6 {[%clk 0:04:54.6]} 5. Bb5 {[%clk
0:04:52.1]} 5... Nf6 {[%clk 0:04:52.4]} 6. Nf3 {[%clk 0:04:50.2]} 6... e6 {[%clk
0:04:45.6]} 7. a3 {[%clk 0:04:47.3]} 7... Bd7 {[%clk 0:04:43.9]} 8. O-O {[%clk
0:04:45.7]} 8... Bd6 {[%clk 0:04:41.4]} 9. h3 {[%clk 0:04:42.3]} 9... O-O {[%clk
0:04:39.7]} 10. Bg5 {[%clk 0:04:40]} 10... h6 {[%clk 0:04:38.1]} 11. Bh4 {[%clk
0:04:37.4]} 11... a6 {[%clk 0:04:34.1]} 12. Bxc6 {[%clk 0:04:35.1]} 12... bxc6
{[%clk 0:04:31.2]} 13. Re1 {[%clk 0:04:25.8]} 13... c5 {[%clk 0:04:27.9]} 14.
dxc5 {[%clk 0:04:23.2]} 14... Bxc5 {[%clk 0:04:26.9]} 15. Ne5 {[%clk 0:04:15.2]}
15... Be7 {[%clk 0:04:22.2]} 16. Nxd7 {[%clk 0:04:13.4]} 16... Nxd7 {[%clk
0:04:17]} 17. Bxe7 {[%clk 0:04:12]} 17... Qxe7 {[%clk 0:04:16.3]} 18. Qe2 {[%clk
0:04:04.1]} 18... Qf6 {[%clk 0:04:12.4]} 19. Rad1 {[%clk 0:04:00.2]} 19... Rfb8
{[%clk 0:04:06.8]} 20. Rb1 {[%clk 0:03:53.7]} 20... Nb6 {[%clk 0:03:57.7]} 21.
Nd1 {[%clk 0:03:41.2]} 21... Nc4 {[%clk 0:03:55]} 22. b3 {[%clk 0:03:23]} 22...
Nxa3 {[%clk 0:03:52.9]} 23. Rc1 {[%clk 0:03:17.7]} 23... Nb5 {[%clk 0:03:43.5]}
24. Ne3 {[%clk 0:03:14.9]} 24... Nc3 {[%clk 0:03:39.6]} 25. Qf3 {[%clk
0:03:03.7]} 25... Qxf3 {[%clk 0:03:37.4]} 26. gxf3 {[%clk 0:03:03.6]} 26... a5
{[%clk 0:03:35.7]} 27. Nd1 {[%clk 0:02:55]} 27... Rc8 {[%clk 0:03:31.9]} 28.
Nxc3 {[%clk 0:02:51.3]} 28... Rxc3 {[%clk 0:03:31.8]} 29. Re3 {[%clk 0:02:47.7]}
29... Rac8 {[%clk 0:03:20]} 30. Rxc3 {[%clk 0:02:44]} 30... Rxc3 {[%clk
0:03:19.9]} 31. Kf1 {[%clk 0:02:42.6]} 31... Rxf3 {[%clk 0:03:18.2]} 32. h4
{[%clk 0:02:39.9]} 32... Rh3 {[%clk 0:03:11.6]} 33. Ra1 {[%clk 0:02:36.7]} 33...
Rh1+ {[%clk 0:03:10.2]} 34. Kg2 {[%clk 0:02:35.4]} 34... Rxa1 {[%clk 0:03:10.1]}
0-1

[Event "Live Chess"]
[Site "Chess.com"]
[Date "2024.06.01"]
[Round "-"]
[White "GerardATHart"]
[Black "f4nomore"]
[Result "0-1"]
[WhiteElo "1391"]
[BlackElo "1248"]
[TimeControl "300"]
[EndTime "14:51:45 PDT"]
[Termination "f4nomore won by resignation"]

1. e4 {[%clk 0:04:53.7]} 1... g6 {[%clk 0:04:58.8]} 2. d4 {[%clk 0:04:51]} 2...
Bg7 {[%clk 0:04:57.5]} 3. c4 {[%clk 0:04:48.8]} 3... d6 {[%clk 0:04:56.5]} 4.
Nc3 {[%clk 0:04:46.8]} 4... Nf6 {[%clk 0:04:54.2]} 5. Nf3 {[%clk 0:04:44.5]}
5... O-O {[%clk 0:04:52.7]} 6. Be3 {[%clk 0:04:36.6]} 6... Nbd7 {[%clk
0:04:51.2]} 7. Qd2 {[%clk 0:04:34.4]} 7... Ng4 {[%clk 0:04:47]} 8. O-O-O {[%clk
0:04:32.3]} 8... Nxe3 {[%clk 0:04:45.3]} 9. Qxe3 {[%clk 0:04:29.9]} 9... Nf6
{[%clk 0:04:40.3]} 10. Bd3 {[%clk 0:04:21.8]} 10... Ng4 {[%clk 0:04:37.1]} 11.
Qe2 {[%clk 0:04:14.1]} 11... e5 {[%clk 0:04:30.5]} 12. d5 {[%clk 0:04:12.1]}
12... Qf6 {[%clk 0:04:19.5]} 13. h3 {[%clk 0:04:03.2]} 13... Nh6 {[%clk
0:04:13.8]} 14. g4 {[%clk 0:04:01]} 14... Qf4+ {[%clk 0:04:02]} 15. Kc2 {[%clk
0:03:48.5]} 15... f5 {[%clk 0:03:59.9]} 16. Rdg1 {[%clk 0:03:33.6]} 16... fxg4
{[%clk 0:03:57.2]} 17. hxg4 {[%clk 0:03:31.8]} 17... Qxf3 {[%clk 0:03:46]} 18.
Qxf3 {[%clk 0:03:28.4]} 18... Rxf3 {[%clk 0:03:42.8]} 19. g5 {[%clk 0:03:21.9]}
19... Rxf2+ {[%clk 0:03:37.8]} 20. Kc1 {[%clk 0:03:18.1]} 20... Ng4 {[%clk
0:03:34.2]} 21. Rh4 {[%clk 0:03:11.2]} 21... Bd7 {[%clk 0:03:12.5]} 22. Rgh1
{[%clk 0:03:06.7]} 22... h5 {[%clk 0:03:08.8]} 23. gxh6 {[%clk 0:03:04.5]} 23...
Nxh6 {[%clk 0:02:53.2]} 24. Be2 {[%clk 0:02:56.5]} 24... Raf8 {[%clk 0:02:39.5]}
25. Rxh6 {[%clk 0:02:38.1]} 25... Bxh6+ {[%clk 0:02:36.4]} 26. Rxh6 {[%clk
0:02:37]} 26... Kg7 {[%clk 0:02:34.5]} 27. Rh4 {[%clk 0:02:33]} 27... Rh8 {[%clk
0:02:31.7]} 28. Rxh8 {[%clk 0:02:29.7]} 28... Kxh8 {[%clk 0:02:30]} 29. Kd1
{[%clk 0:02:27.9]} 29... Rh2 {[%clk 0:02:24.9]} 30. Ke1 {[%clk 0:02:24.4]} 30...
Kg7 {[%clk 0:02:22]} 31. Nd1 {[%clk 0:02:21.2]} 31... Rh4 {[%clk 0:02:05.7]} 32.
Nf2 {[%clk 0:02:16.8]} 32... c6 {[%clk 0:01:54.6]} 33. Kf1 {[%clk 0:02:13.1]}
33... Rf4 {[%clk 0:01:50.5]} 34. Kg2 {[%clk 0:02:09.5]} 34... cxd5 {[%clk
0:01:47.1]} 35. cxd5 {[%clk 0:02:06.6]} 35... b6 {[%clk 0:01:43.4]} 36. Kg3
{[%clk 0:02:03.1]} 36... a5 {[%clk 0:01:40.5]} 37. Bf3 {[%clk 0:01:56]} 37...
Rf8 {[%clk 0:01:31.8]} 38. Nh3 {[%clk 0:01:53.6]} 38... Bxh3 {[%clk 0:01:28.8]}
0-1

[Event "Live Chess"]
[Site "Chess.com"]
[Date "2024.06.01"]
[Round "-"]
[White "ProfPoisson"]
[Black "IgorSchukin"]
[Result "0-1"]
[WhiteElo "1273"]
[BlackElo "1708"]
[TimeControl "300"]
[EndTime "14:51:56 PDT"]
[Termination "IgorSchukin won by checkmate"]

1. e4 {[%clk 0:04:54.6]} 1... c5 {[%clk 0:04:58.5]} 2. Nc3 {[%clk 0:04:51.6]}
2... e6 {[%clk 0:04:57.7]} 3. f4 {[%clk 0:04:50]} 3... Nc6 {[%clk 0:04:57.1]} 4.
Nf3 {[%clk 0:04:48.5]} 4... d5 {[%clk 0:04:56]} 5. Bb5 {[%clk 0:04:47.6]} 5...
d4 {[%clk 0:04:54.6]} 6. Bxc6+ {[%clk 0:04:46]} 6... bxc6 {[%clk 0:04:53.6]} 7.
Ne2 {[%clk 0:04:44.8]} 7... Nf6 {[%clk 0:04:51.1]} 8. d3 {[%clk 0:04:39.4]} 8...
Be7 {[%clk 0:04:49.6]} 9. O-O {[%clk 0:04:37.7]} 9... a5 {[%clk 0:04:48.1]} 10.
a4 {[%clk 0:04:30.4]} 10... O-O {[%clk 0:04:44.4]} 11. Ne5 {[%clk 0:04:26]}
11... Qc7 {[%clk 0:04:40.9]} 12. Qe1 {[%clk 0:04:11.7]} 12... Bd6 {[%clk
0:04:38.8]} 13. Nc4 {[%clk 0:04:01.7]} 13... Be7 {[%clk 0:04:31]} 14. e5 {[%clk
0:03:56.8]} 14... Nd5 {[%clk 0:04:27.4]} 15. Qg3 {[%clk 0:03:46.4]} 15... f5
{[%clk 0:04:18.4]} 16. exf6 {[%clk 0:03:39]} 16... Bxf6 {[%clk 0:04:16.2]} 17.
f5 {[%clk 0:03:21.6]} 17... Qxg3 {[%clk 0:04:13.9]} 18. Nxg3 {[%clk 0:03:17.9]}
18... exf5 {[%clk 0:04:10.6]} 19. Nxf5 {[%clk 0:03:11.4]} 19... Bxf5 {[%clk
0:04:07.9]} 20. Rxf5 {[%clk 0:03:09.2]} 20... Nb4 {[%clk 0:03:58.7]} 21. Rxc5
{[%clk 0:03:03.8]} 21... Nxc2 {[%clk 0:03:55.3]} 22. Rb1 {[%clk 0:02:53.7]}
22... Nb4 {[%clk 0:03:49.5]} 23. b3 {[%clk 0:02:47.5]} 23... Rfc8 {[%clk
0:03:44.2]} 24. Rf5 {[%clk 0:02:38.9]} 24... Nxd3 {[%clk 0:03:41.8]} 25. Nd6
{[%clk 0:02:34.1]} 25... Rd8 {[%clk 0:03:24.3]} 26. Nb7 {[%clk 0:02:30.8]} 26...
Rd7 {[%clk 0:03:11.5]} 27. Nxa5 {[%clk 0:02:28.8]} 27... Nxc1 {[%clk 0:03:08]}
28. Rxc1 {[%clk 0:02:25.6]} 28... d3 {[%clk 0:03:07]} 29. Nxc6 {[%clk
0:02:19.6]} 29... d2 {[%clk 0:02:52.7]} 30. Rd1 {[%clk 0:02:18]} 30... Rc8
{[%clk 0:02:49.5]} 31. Ne5 {[%clk 0:01:39.1]} 31... Rc1 {[%clk 0:02:32.8]} 32.
Rff1 {[%clk 0:01:34.6]} 32... Rxd1 {[%clk 0:02:26.9]} 33. Rxd1 {[%clk 0:01:32]}
33... Bxe5 {[%clk 0:02:25.1]} 34. b4 {[%clk 0:01:29.6]} 34... Bc3 {[%clk
0:02:19.8]} 35. b5 {[%clk 0:01:19.4]} 35... Re7 {[%clk 0:02:16.8]} 36. Kf1
{[%clk 0:01:17.7]} 36... Re1+ {[%clk 0:02:15.4]} 37. Rxe1 {[%clk 0:01:09.1]}
37... dxe1=Q# {[%clk 0:02:13.7]} 0-1

[Event "Live Chess"]
[Site "Chess.com"]
[Date "2024.06.01"]
[Round "-"]
[White "wadsy27"]
[Black "AndrewBak1"]
[Result "1-0"]
[WhiteElo "2540"]
[BlackElo "1868"]
[TimeControl "300"]
[EndTime "14:52:01 PDT"]
[Termination "wadsy27 won by checkmate"]

1. d4 {[%clk 0:04:59.5]} 1... d5 {[%clk 0:04:58.9]} 2. c4 {[%clk 0:04:58.8]}
2... c6 {[%clk 0:04:57.5]} 3. cxd5 {[%clk 0:04:58.2]} 3... cxd5 {[%clk
0:04:56.6]} 4. Nc3 {[%clk 0:04:58]} 4... e5 {[%clk 0:04:55.9]} 5. dxe5 {[%clk
0:04:56]} 5... d4 {[%clk 0:04:55.8]} 6. Ne4 {[%clk 0:04:55.6]} 6... Qa5+ {[%clk
0:04:55.3]} 7. Bd2 {[%clk 0:04:46.7]} 7... Qxe5 {[%clk 0:04:47.6]} 8. Rc1 {[%clk
0:04:45]} 8... Nc6 {[%clk 0:04:42]} 9. Ng3 {[%clk 0:04:40]} 9... Nf6 {[%clk
0:04:29.4]} 10. Nf3 {[%clk 0:04:39.4]} 10... Qd6 {[%clk 0:04:27.7]} 11. Qc2
{[%clk 0:04:19.3]} 11... g6 {[%clk 0:04:17.8]} 12. Ne4 {[%clk 0:04:17.4]} 12...
Nxe4 {[%clk 0:04:14.1]} 13. Qxe4+ {[%clk 0:04:17.3]} 13... Qe6 {[%clk
0:04:01.9]} 14. Qxe6+ {[%clk 0:04:08.3]} 14... Bxe6 {[%clk 0:04:01.8]} 15. a3
{[%clk 0:04:07.9]} 15... Bg7 {[%clk 0:03:56.6]} 16. g3 {[%clk 0:04:07.2]} 16...
O-O {[%clk 0:03:36]} 17. Bg2 {[%clk 0:03:59.8]} 17... d3 {[%clk 0:03:05.6]} 18.
exd3 {[%clk 0:03:58.3]} 18... Bxb2 {[%clk 0:03:04.4]} 19. Rb1 {[%clk 0:03:58.1]}
19... Bxa3 {[%clk 0:02:59.8]} 20. O-O {[%clk 0:03:57.5]} 20... Rad8 {[%clk
0:02:41.2]} 21. Bh6 {[%clk 0:03:40]} 21... Rfe8 {[%clk 0:02:38]} 22. Rxb7 {[%clk
0:03:26]} 22... Bd5 {[%clk 0:02:17.4]} 23. Ng5 {[%clk 0:03:21.4]} 23... Re7
{[%clk 0:01:51.6]} 24. Rfb1 {[%clk 0:03:20.2]} 24... Bxg2 {[%clk 0:01:41.2]} 25.
Kxg2 {[%clk 0:03:19.8]} 25... Rxd3 {[%clk 0:01:27.7]} 26. Rb8+ {[%clk
0:03:18.7]} 26... Rd8 {[%clk 0:01:13.5]} 27. Rxd8+ {[%clk 0:03:15.8]} 27... Nxd8
{[%clk 0:01:13.4]} 28. Rb8 {[%clk 0:03:15.1]} 28... Re8 {[%clk 0:01:10.8]} 29.
Ra8 {[%clk 0:03:05.5]} 29... Bc5 {[%clk 0:00:39.2]} 30. Ne4 {[%clk 0:03:04.3]}
30... Be7 {[%clk 0:00:08.2]} 31. Rxa7 {[%clk 0:03:03.6]} 31... f5 {[%clk
0:00:06.2]} 32. Nc3 {[%clk 0:03:03]} 32... Bf8 {[%clk 0:00:05.3]} 33. Nd5 {[%clk
0:02:57.6]} 33... Bxh6 {[%clk 0:00:04]} 34. Nf6+ {[%clk 0:02:57]} 34... Kh8
{[%clk 0:00:02]} 35. Rxh7# {[%clk 0:02:55.6]} 1-0